[Event "Titled Tuesday Blitz August 15 Early 2023"]
[White "Degenbaev, Aziz"]
[Black "ChainedDowntohell"]
[WhiteFideId "13802640"]
[WhiteElo "2544"]
[BlackElo "2555"]
[Result "1-0"]
[Round "11"]
[TimeControl "180+1"]
[Date "2023.08.15"]
[WhiteClock "0:00:18"]
[BlackClock "0:00:00"]
[Board "69"]

1. e4 {[%clk 0:02:56]}  c5 {[%clk 0:02:57]} 2. Nf3 {[%clk 0:02:54]}  d6 {[%clk 0:02:56]} 3. d4 {[%clk 0:02:53]}  cxd4 {[%clk 0:02:56]} 4. Qxd4 {[%clk 0:02:54]}  Nc6 {[%clk 0:02:53]} 5. Bb5 {[%clk 0:02:53]}  Bd7 {[%clk 0:02:50]} 6. Bxc6 {[%clk 0:02:53]}  Bxc6 {[%clk 0:02:48]} 7. Nc3 {[%clk 0:02:54]}  e5 {[%clk 0:02:46]} 8. Qd3 {[%clk 0:02:52]}  h6 {[%clk 0:02:46]} 9. Be3 {[%clk 0:02:50]}  Nf6 {[%clk 0:02:44]} 10. O-O-O {[%clk 0:02:50]}  Be7 {[%clk 0:02:43]} 11. h3 {[%clk 0:02:51]}  Qc7 {[%clk 0:02:37]} 12. g4 {[%clk 0:02:51]}  g5 {[%clk 0:02:19]} 13. h4 {[%clk 0:02:30]}  Nxg4 {[%clk 0:02:17]} 14. hxg5 {[%clk 0:02:29]}  Nxe3 {[%clk 0:02:15]} 15. Qxe3 {[%clk 0:02:27]}  b5 {[%clk 0:01:36]} 16. gxh6 {[%clk 0:02:24]}  Qa5 {[%clk 0:01:30]} 17. Kb1 {[%clk 0:02:22]}  Rc8 {[%clk 0:01:20]} 18. h7 {[%clk 0:02:19]}  Qb6 {[%clk 0:01:07]} 19. Qh6 {[%clk 0:01:44]}  b4 {[%clk 0:00:30]} 20. Nd5 {[%clk 0:01:43]}  Bxd5 {[%clk 0:00:29]} 21. Rxd5 {[%clk 0:01:40]}  Qxf2 {[%clk 0:00:29]} 22. Nd2 {[%clk 0:01:36]}  Kd7 {[%clk 0:00:13]} 23. Rf1 {[%clk 0:01:30]}  Qh4 {[%clk 0:00:06]} 24. Rxd6+ {[%clk 0:01:15]}  Ke8 {[%clk 0:00:04]} 25. Qg7 {[%clk 0:01:13]}  Rxh7 {[%clk 0:00:03]} 26. Qxe5 {[%clk 0:00:56]}  Rh5 {[%clk 0:00:01]} 27. Qg7 {[%clk 0:00:44]}  Bxd6 {[%clk 0:00:01]} 28. Qxf7+ {[%clk 0:00:43]}  Kd8 {[%clk 0:00:02]} 29. Nf3 {[%clk 0:00:40]}  Qh3 {[%clk 0:00:01]} 30. Rd1 {[%clk 0:00:37]}  Rc6 {[%clk 0:00:01]} 31. e5 {[%clk 0:00:31]}  Qf5 {[%clk 0:00:01]} 32. Qg8+ {[%clk 0:00:25]}  Kd7 {[%clk 0:00:00]} 33. Nd4 {[%clk 0:00:18]} 1-0


[Site "https://www.chess.com"]

[Event "Titled Tuesday Blitz August 15 Early 2023"]
[White "Jaskolka, Tomasz"]
[Black "Nosacheva, Mariya"]
[WhiteFideId "1170791"]
[BlackFideId "34111422"]
[WhiteElo "2552"]
[BlackElo "2399"]
[Result "1-0"]
[Round "11"]
[TimeControl "180+1"]
[Date "2023.08.15"]
[WhiteClock "0:02:04"]
[BlackClock "0:01:26"]
[Board "70"]

1. e4 {[%clk 0:03:00]}  c5 {[%clk 0:02:57]} 2. Nf3 {[%clk 0:03:01]}  d6 {[%clk 0:02:57]} 3. Bb5+ {[%clk 0:02:57]}  Nd7 {[%clk 0:02:54]} 4. a4 {[%clk 0:02:58]}  a6 {[%clk 0:02:53]} 5. Bc4 {[%clk 0:02:56]}  Ngf6 {[%clk 0:02:42]} 6. Nc3 {[%clk 0:02:56]}  e6 {[%clk 0:02:40]} 7. O-O {[%clk 0:02:55]}  Be7 {[%clk 0:02:40]} 8. d4 {[%clk 0:02:46]}  cxd4 {[%clk 0:02:39]} 9. Nxd4 {[%clk 0:02:45]}  O-O {[%clk 0:02:40]} 10. Be3 {[%clk 0:02:44]}  b6 {[%clk 0:02:32]} 11. Nc6 {[%clk 0:02:39]}  Qe8 {[%clk 0:02:30]} 12. Bf4 {[%clk 0:02:34]}  e5 {[%clk 0:02:22]} 13. Bg5 {[%clk 0:02:30]}  Bb7 {[%clk 0:02:21]} 14. Nxe7+ {[%clk 0:02:27]}  Qxe7 {[%clk 0:02:22]} 15. Bd5 {[%clk 0:02:25]}  Nc5 {[%clk 0:01:55]} 16. Bxb7 {[%clk 0:02:22]}  Nxb7 {[%clk 0:01:45]} 17. Nd5 {[%clk 0:02:21]}  Qd8 {[%clk 0:01:45]} 18. Qf3 {[%clk 0:02:16]}  Qc8 {[%clk 0:01:26]} 19. Ne7+ {[%clk 0:02:04]} 1-0


[Site "https://www.chess.com"]

[Event "Titled Tuesday Blitz August 15 Early 2023"]
[White "Akylbek2021"]
[Black "Gritsenko, Nikolai"]
[BlackFideId "14112493"]
[WhiteElo "2370"]
[BlackElo "2711"]
[Result "0-1"]
[Round "11"]
[TimeControl "180+1"]
[Date "2023.08.15"]
[WhiteClock "0:00:05"]
[BlackClock "0:00:13"]
[Board "73"]

1. d4 {[%clk 0:03:00]}  d5 {[%clk 0:02:59]} 2. Bf4 {[%clk 0:03:00]}  c6 {[%clk 0:02:58]} 3. Nc3 {[%clk 0:03:00]}  Bf5 {[%clk 0:02:57]} 4. e3 {[%clk 0:02:56]}  Nf6 {[%clk 0:02:56]} 5. f3 {[%clk 0:02:56]}  e6 {[%clk 0:02:54]} 6. g4 {[%clk 0:02:56]}  Bg6 {[%clk 0:02:54]} 7. h4 {[%clk 0:02:57]}  h6 {[%clk 0:02:53]} 8. Qd2 {[%clk 0:02:55]}  Nbd7 {[%clk 0:02:49]} 9. O-O-O {[%clk 0:02:53]}  Qa5 {[%clk 0:02:42]} 10. Bd3 {[%clk 0:02:46]}  Bxd3 {[%clk 0:02:39]} 11. cxd3 {[%clk 0:02:47]}  c5 {[%clk 0:02:16]} 12. dxc5 {[%clk 0:02:25]}  Nxc5 {[%clk 0:02:14]} 13. Kb1 {[%clk 0:02:20]}  d4 {[%clk 0:02:01]} 14. exd4 {[%clk 0:02:17]}  Na4 {[%clk 0:02:01]} 15. Nge2 {[%clk 0:02:07]}  Bb4 {[%clk 0:01:45]} 16. g5 {[%clk 0:01:59]}  Nd5 {[%clk 0:01:40]} 17. Rc1 {[%clk 0:01:52]}  hxg5 {[%clk 0:01:33]} 18. Bxg5 {[%clk 0:01:37]}  Rc8 {[%clk 0:01:20]} 19. Nxd5 {[%clk 0:00:54]}  Bxd2 {[%clk 0:01:09]} 20. Rxc8+ {[%clk 0:00:52]}  Kd7 {[%clk 0:01:09]} 21. Rxh8 {[%clk 0:00:31]}  Bxg5 {[%clk 0:01:07]} 22. Ndc3 {[%clk 0:00:30]}  Bf6 {[%clk 0:01:01]} 23. Nxa4 {[%clk 0:00:24]}  Qxa4 {[%clk 0:01:00]} 24. Rc1 {[%clk 0:00:25]}  Qb5 {[%clk 0:00:57]} 25. Rc3 {[%clk 0:00:24]}  Qf5 {[%clk 0:00:55]} 26. Rhc8 {[%clk 0:00:24]}  Bd8 {[%clk 0:00:53]} 27. f4 {[%clk 0:00:22]}  Qg4 {[%clk 0:00:51]} 28. Rc2 {[%clk 0:00:20]}  Qxh4 {[%clk 0:00:50]} 29. R8c5 {[%clk 0:00:19]}  Qe1+ {[%clk 0:00:46]} 30. Nc1 {[%clk 0:00:18]}  g6 {[%clk 0:00:46]} 31. d5 {[%clk 0:00:18]}  e5 {[%clk 0:00:35]} 32. fxe5 {[%clk 0:00:16]}  Qxe5 {[%clk 0:00:35]} 33. Nb3 {[%clk 0:00:15]}  b6 {[%clk 0:00:32]} 34. R5c4 {[%clk 0:00:14]}  Qf5 {[%clk 0:00:30]} 35. Re4 {[%clk 0:00:14]}  g5 {[%clk 0:00:29]} 36. Rce2 {[%clk 0:00:12]}  Qf1+ {[%clk 0:00:28]} 37. Kc2 {[%clk 0:00:12]}  f5 {[%clk 0:00:27]} 38. Re5 {[%clk 0:00:12]}  f4 {[%clk 0:00:26]} 39. Nd4 {[%clk 0:00:11]}  f3 {[%clk 0:00:24]} 40. Rd2 {[%clk 0:00:11]}  g4 {[%clk 0:00:24]} 41. Rf5 {[%clk 0:00:11]}  Qg1 {[%clk 0:00:21]} 42. Ne6 {[%clk 0:00:11]}  Be7 {[%clk 0:00:19]} 43. Rf7 {[%clk 0:00:10]}  Qe3 {[%clk 0:00:17]} 44. Rf5 {[%clk 0:00:08]}  Kd6 {[%clk 0:00:16]} 45. Rf7 {[%clk 0:00:08]}  g3 {[%clk 0:00:16]} 46. Rf5 {[%clk 0:00:07]}  g2 {[%clk 0:00:16]} 47. Nf4 {[%clk 0:00:07]}  g1=Q {[%clk 0:00:15]} 48. Rf7 {[%clk 0:00:06]}  Qc5+ {[%clk 0:00:14]} 49. Kb3 {[%clk 0:00:06]}  Qb5+ {[%clk 0:00:14]} 50. Kc2 {[%clk 0:00:06]}  Qa4+ {[%clk 0:00:14]} 51. Kc3 {[%clk 0:00:05]}  Qgd4# {[%clk 0:00:13]} 0-1


[Site "https://www.chess.com"]

[Event "Titled Tuesday Blitz August 15 Early 2023"]
[White "Ljukin, Sergei"]
[Black "Golubev, Mikhail"]
[WhiteFideId "14102200"]
[BlackFideId "14100983"]
[WhiteElo "2454"]
[BlackElo "2593"]
[Result "1-0"]
[Round "11"]
[TimeControl "180+1"]
[Date "2023.08.15"]
[WhiteClock "0:00:02"]
[BlackClock "0:00:15"]
[Board "78"]

1. e4 {[%clk 0:03:00]}  c5 {[%clk 0:02:59]} 2. Nf3 {[%clk 0:03:00]}  d6 {[%clk 0:03:00]} 3. d4 {[%clk 0:03:01]}  cxd4 {[%clk 0:03:00]} 4. Nxd4 {[%clk 0:03:01]}  Nf6 {[%clk 0:03:00]} 5. Nc3 {[%clk 0:03:02]}  g6 {[%clk 0:03:01]} 6. Be3 {[%clk 0:03:01]}  Bg7 {[%clk 0:03:01]} 7. f3 {[%clk 0:03:02]}  Nc6 {[%clk 0:03:01]} 8. Qd2 {[%clk 0:03:02]}  O-O {[%clk 0:03:02]} 9. O-O-O {[%clk 0:03:03]}  d5 {[%clk 0:03:01]} 10. Kb1 {[%clk 0:03:03]}  Nxd4 {[%clk 0:02:56]} 11. e5 {[%clk 0:03:03]}  Nf5 {[%clk 0:02:52]} 12. exf6 {[%clk 0:03:02]}  exf6 {[%clk 0:02:51]} 13. Nxd5 {[%clk 0:03:01]}  Nxe3 {[%clk 0:02:48]} 14. Qxe3 {[%clk 0:03:01]}  Be6 {[%clk 0:02:48]} 15. Bc4 {[%clk 0:03:01]}  f5 {[%clk 0:02:48]} 16. Bb3 {[%clk 0:02:54]}  Re8 {[%clk 0:02:43]} 17. Qc5 {[%clk 0:02:48]}  b6 {[%clk 0:02:35]} 18. Qb5 {[%clk 0:02:11]}  Rc8 {[%clk 0:02:09]} 19. c3 {[%clk 0:01:24]}  Qg5 {[%clk 0:02:01]} 20. g3 {[%clk 0:01:16]}  f4 {[%clk 0:01:07]} 21. gxf4 {[%clk 0:01:05]}  Qg2 {[%clk 0:00:59]} 22. Bc2 {[%clk 0:00:45]}  Qxf3 {[%clk 0:00:38]} 23. Rhf1 {[%clk 0:00:37]}  Qh3 {[%clk 0:00:29]} 24. f5 {[%clk 0:00:32]}  gxf5 {[%clk 0:00:29]} 25. Rg1 {[%clk 0:00:22]}  Kh8 {[%clk 0:00:25]} 26. Nc7 {[%clk 0:00:10]}  Rg8 {[%clk 0:00:20]} 27. Nd5 {[%clk 0:00:08]}  Rc5 {[%clk 0:00:19]} 28. Qb3 {[%clk 0:00:03]}  Qxh2 {[%clk 0:00:18]} 29. c4 {[%clk 0:00:02]}  f4 {[%clk 0:00:15]} 30. Rh1 {[%clk 0:00:02]}  Qg3 {[%clk 0:00:15]} 31. Rxh7# {[%clk 0:00:02]} 1-0


[Site "https://www.chess.com"]

[Event "Titled Tuesday Blitz August 15 Early 2023"]
[White "Chor, Kevin"]
[Black "ExchangeAB"]
[WhiteFideId "2090740"]
[WhiteElo "2567"]
[BlackElo "2432"]
[Result "0-1"]
[Round "11"]
[TimeControl "180+1"]
[Date "2023.08.15"]
[WhiteClock "0:00:07"]
[BlackClock "0:00:12"]
[Board "81"]

1. d4 {[%clk 0:03:00]}  Nf6 {[%clk 0:02:59]} 2. Nf3 {[%clk 0:03:00]}  c6 {[%clk 0:02:59]} 3. c4 {[%clk 0:02:59]}  d5 {[%clk 0:03:00]} 4. g3 {[%clk 0:02:59]}  e6 {[%clk 0:02:58]} 5. Qc2 {[%clk 0:02:56]}  Bb4+ {[%clk 0:02:55]} 6. Bd2 {[%clk 0:02:56]}  Be7 {[%clk 0:02:55]} 7. Bg2 {[%clk 0:02:56]}  O-O {[%clk 0:02:55]} 8. O-O {[%clk 0:02:56]}  Nbd7 {[%clk 0:02:55]} 9. Bf4 {[%clk 0:02:55]}  Nb6 {[%clk 0:02:44]} 10. Nbd2 {[%clk 0:02:37]}  dxc4 {[%clk 0:02:41]} 11. e4 {[%clk 0:02:26]}  c5 {[%clk 0:02:33]} 12. dxc5 {[%clk 0:02:25]}  Bxc5 {[%clk 0:02:32]} 13. Nxc4 {[%clk 0:02:26]}  Qe7 {[%clk 0:02:26]} 14. Rfd1 {[%clk 0:02:16]}  Nxc4 {[%clk 0:02:02]} 15. Qxc4 {[%clk 0:02:15]}  b6 {[%clk 0:01:55]} 16. Bg5 {[%clk 0:01:25]}  e5 {[%clk 0:01:44]} 17. Rd5 {[%clk 0:01:09]}  Be6 {[%clk 0:01:41]} 18. Re1 {[%clk 0:00:56]}  h6 {[%clk 0:01:34]} 19. Bd2 {[%clk 0:00:23]}  Rac8 {[%clk 0:00:57]} 20. Qe2 {[%clk 0:00:09]}  Bxd5 {[%clk 0:00:55]} 21. exd5 {[%clk 0:00:09]}  Nxd5 {[%clk 0:00:52]} 22. Nh4 {[%clk 0:00:06]}  Qd7 {[%clk 0:00:44]} 23. Rd1 {[%clk 0:00:02]}  Bd4 {[%clk 0:00:38]} 24. Qh5 {[%clk 0:00:02]}  Nf6 {[%clk 0:00:36]} 25. Qf3 {[%clk 0:00:02]}  Qg4 {[%clk 0:00:34]} 26. Qxg4 {[%clk 0:00:01]}  Nxg4 {[%clk 0:00:35]} 27. Bh3 {[%clk 0:00:01]}  f5 {[%clk 0:00:35]} 28. Nxf5 {[%clk 0:00:01]}  Rxf5 {[%clk 0:00:24]} 29. Bxg4 {[%clk 0:00:02]}  Rxf2 {[%clk 0:00:24]} 30. Be1 {[%clk 0:00:01]}  Rd2+ {[%clk 0:00:22]} 31. Kf1 {[%clk 0:00:01]}  Rxd1 {[%clk 0:00:23]} 32. Bxc8 {[%clk 0:00:01]}  Bxb2 {[%clk 0:00:21]} 33. Be6+ {[%clk 0:00:02]}  Kh8 {[%clk 0:00:21]} 34. Ke2 {[%clk 0:00:02]}  Rd8 {[%clk 0:00:20]} 35. Bb3 {[%clk 0:00:03]}  Bd4 {[%clk 0:00:20]} 36. Kf3 {[%clk 0:00:04]}  Rf8+ {[%clk 0:00:19]} 37. Ke4 {[%clk 0:00:04]}  Rf1 {[%clk 0:00:18]} 38. Bb4 {[%clk 0:00:05]}  Rh1 {[%clk 0:00:18]} 39. h4 {[%clk 0:00:05]}  Rg1 {[%clk 0:00:16]} 40. Kf3 {[%clk 0:00:05]}  Bc5 {[%clk 0:00:15]} 41. Bc3 {[%clk 0:00:05]}  e4+ {[%clk 0:00:15]} 42. Kf4 {[%clk 0:00:04]}  e3 {[%clk 0:00:14]} 43. Kf5 {[%clk 0:00:05]}  e2 {[%clk 0:00:14]} 44. g4 {[%clk 0:00:05]}  e1=Q {[%clk 0:00:14]} 45. Kg6 {[%clk 0:00:06]}  Qxc3 {[%clk 0:00:13]} 46. Bf7 {[%clk 0:00:07]}  Qf6+ {[%clk 0:00:13]} 47. Kh5 {[%clk 0:00:08]}  Rxg4 {[%clk 0:00:12]} 48. Be6 {[%clk 0:00:07]}  Qg6# {[%clk 0:00:12]} 0-1


[Site "https://www.chess.com"]

[Event "Titled Tuesday Blitz August 15 Early 2023"]
[White "Todorovic, Bojan"]
[Black "Przybylski, Wojciech"]
[WhiteFideId "917087"]
[BlackFideId "1117599"]
[WhiteElo "2429"]
[BlackElo "2563"]
[Result "0-1"]
[Round "11"]
[TimeControl "180+1"]
[Date "2023.08.15"]
[WhiteClock "0:01:10"]
[BlackClock "0:01:39"]
[Board "82"]

1. d4 {[%clk 0:02:59]}  Nf6 {[%clk 0:02:59]} 2. c4 {[%clk 0:02:58]}  e6 {[%clk 0:02:59]} 3. Nf3 {[%clk 0:02:57]}  b6 {[%clk 0:02:59]} 4. g3 {[%clk 0:02:53]}  Ba6 {[%clk 0:02:58]} 5. b3 {[%clk 0:02:52]}  Bb4+ {[%clk 0:02:57]} 6. Bd2 {[%clk 0:02:52]}  Be7 {[%clk 0:02:56]} 7. Bg2 {[%clk 0:02:50]}  O-O {[%clk 0:02:51]} 8. O-O {[%clk 0:02:49]}  d5 {[%clk 0:02:49]} 9. Ne5 {[%clk 0:02:48]}  c6 {[%clk 0:02:49]} 10. Bc3 {[%clk 0:02:39]}  Nfd7 {[%clk 0:02:46]} 11. Nxd7 {[%clk 0:02:36]}  Nxd7 {[%clk 0:02:45]} 12. Nd2 {[%clk 0:02:36]}  Rc8 {[%clk 0:02:42]} 13. e4 {[%clk 0:02:28]}  b5 {[%clk 0:02:33]} 14. Re1 {[%clk 0:02:13]}  bxc4 {[%clk 0:02:29]} 15. bxc4 {[%clk 0:02:09]}  dxc4 {[%clk 0:02:23]} 16. Bf1 {[%clk 0:02:08]}  Nb6 {[%clk 0:02:21]} 17. a4 {[%clk 0:02:07]}  c5 {[%clk 0:02:16]} 18. a5 {[%clk 0:02:03]}  cxd4 {[%clk 0:02:12]} 19. axb6 {[%clk 0:02:02]}  dxc3 {[%clk 0:02:11]} 20. Nf3 {[%clk 0:01:56]}  Qxb6 {[%clk 0:02:05]} 21. Qd7 {[%clk 0:01:54]}  Rc7 {[%clk 0:01:52]} 22. Qa4 {[%clk 0:01:52]}  Bb5 {[%clk 0:01:52]} 23. Qc2 {[%clk 0:01:49]}  Bb4 {[%clk 0:01:52]} 24. Reb1 {[%clk 0:01:42]}  a5 {[%clk 0:01:52]} 25. Ne5 {[%clk 0:01:34]}  f6 {[%clk 0:01:48]} 26. Ng4 {[%clk 0:01:31]}  Rd8 {[%clk 0:01:43]} 27. Rd1 {[%clk 0:01:23]}  Rd2 {[%clk 0:01:41]} 28. Rxd2 {[%clk 0:01:19]}  cxd2 {[%clk 0:01:41]} 29. Ne3 {[%clk 0:01:10]}  c3 {[%clk 0:01:39]} 0-1


[Site "https://www.chess.com"]

[Event "Titled Tuesday Blitz August 15 Early 2023"]
[White "Rozhkov, Viacheslav"]
[Black "Musovic, Armin"]
[WhiteFideId "4181484"]
[BlackFideId "939935"]
[WhiteElo "2416"]
[BlackElo "2561"]
[Result "1-0"]
[Round "11"]
[TimeControl "180+1"]
[Date "2023.08.15"]
[WhiteClock "0:01:38"]
[BlackClock "0:01:04"]
[Board "83"]

1. e4 {[%clk 0:03:00]}  c6 {[%clk 0:02:58]} 2. d3 {[%clk 0:03:00]}  d5 {[%clk 0:02:59]} 3. Nd2 {[%clk 0:03:00]}  g5 {[%clk 0:02:59]} 4. Be2 {[%clk 0:02:49]}  Bg7 {[%clk 0:02:53]} 5. c3 {[%clk 0:02:49]}  h6 {[%clk 0:02:50]} 6. h4 {[%clk 0:02:45]}  gxh4 {[%clk 0:02:49]} 7. Rxh4 {[%clk 0:02:41]}  e6 {[%clk 0:02:46]} 8. Ngf3 {[%clk 0:02:39]}  Ne7 {[%clk 0:02:36]} 9. d4 {[%clk 0:02:35]}  Ng6 {[%clk 0:02:30]} 10. Rh2 {[%clk 0:02:35]}  Nd7 {[%clk 0:02:31]} 11. e5 {[%clk 0:02:34]}  a6 {[%clk 0:02:24]} 12. Nf1 {[%clk 0:02:34]}  c5 {[%clk 0:02:24]} 13. Ng3 {[%clk 0:02:33]}  cxd4 {[%clk 0:02:19]} 14. cxd4 {[%clk 0:02:32]}  Qb6 {[%clk 0:02:14]} 15. Bd3 {[%clk 0:02:25]}  Qb4+ {[%clk 0:02:05]} 16. Kf1 {[%clk 0:02:23]}  b6 {[%clk 0:01:58]} 17. Qc2 {[%clk 0:02:10]}  Ngf8 {[%clk 0:01:45]} 18. Nh5 {[%clk 0:02:08]}  Rg8 {[%clk 0:01:42]} 19. Bh7 {[%clk 0:02:04]}  Nxh7 {[%clk 0:01:42]} 20. Qxh7 {[%clk 0:02:04]}  Qf8 {[%clk 0:01:43]} 21. Rh3 {[%clk 0:01:49]}  f5 {[%clk 0:01:19]} 22. Rg3 {[%clk 0:01:41]}  Ra7 {[%clk 0:01:10]} 23. Rxg7 {[%clk 0:01:38]}  Rxg7 {[%clk 0:01:04]} 24. Nxg7+ {[%clk 0:01:38]} 1-0


[Site "https://www.chess.com"]

[Event "Titled Tuesday Blitz August 15 Early 2023"]
[White "Souleidis, Georgios"]
[Black "Rietze, Clemens, Dr."]
[WhiteFideId "4206827"]
[BlackFideId "24620351"]
[WhiteElo "2542"]
[BlackElo "2415"]
[Result "0-1"]
[Round "11"]
[TimeControl "180+1"]
[Date "2023.08.15"]
[WhiteClock "0:00:02"]
[BlackClock "0:00:19"]
[Board "84"]

1. e4 {[%clk 0:02:52]}  c5 {[%clk 0:02:59]} 2. Nf3 {[%clk 0:02:51]}  Nc6 {[%clk 0:02:59]} 3. Bc4 {[%clk 0:02:51]}  e6 {[%clk 0:02:58]} 4. O-O {[%clk 0:02:50]}  d5 {[%clk 0:02:56]} 5. Bb5 {[%clk 0:02:48]}  dxe4 {[%clk 0:02:45]} 6. Ne5 {[%clk 0:02:47]}  Qd5 {[%clk 0:02:42]} 7. Nxc6 {[%clk 0:02:02]}  bxc6 {[%clk 0:02:41]} 8. Nc3 {[%clk 0:02:02]}  Qd7 {[%clk 0:02:36]} 9. Bc4 {[%clk 0:01:50]}  Nf6 {[%clk 0:02:33]} 10. Qe2 {[%clk 0:01:48]}  Qd4 {[%clk 0:02:31]} 11. b3 {[%clk 0:01:41]}  Bd6 {[%clk 0:02:16]} 12. Bb2 {[%clk 0:01:38]}  Qe5 {[%clk 0:02:12]} 13. g3 {[%clk 0:01:36]}  O-O {[%clk 0:01:59]} 14. Rab1 {[%clk 0:01:34]}  Qf5 {[%clk 0:01:47]} 15. Rbe1 {[%clk 0:01:30]}  Qh3 {[%clk 0:01:46]} 16. Nxe4 {[%clk 0:01:22]}  Nxe4 {[%clk 0:01:28]} 17. Qxe4 {[%clk 0:01:22]}  Bd7 {[%clk 0:01:29]} 18. d4 {[%clk 0:01:14]}  Qh5 {[%clk 0:01:06]} 19. Rd1 {[%clk 0:01:05]}  Rad8 {[%clk 0:01:02]} 20. Be2 {[%clk 0:00:37]}  Qd5 {[%clk 0:00:56]} 21. Qg4 {[%clk 0:00:37]}  e5 {[%clk 0:00:49]} 22. Qh4 {[%clk 0:00:21]}  cxd4 {[%clk 0:00:36]} 23. c3 {[%clk 0:00:22]}  c5 {[%clk 0:00:35]} 24. cxd4 {[%clk 0:00:21]}  cxd4 {[%clk 0:00:35]} 25. Bc4 {[%clk 0:00:22]}  Qa8 {[%clk 0:00:26]} 26. Rxd4 {[%clk 0:00:09]}  Be7 {[%clk 0:00:14]} 27. Qxe7 {[%clk 0:00:05]}  exd4 {[%clk 0:00:14]} 28. Bxd4 {[%clk 0:00:05]}  Qf3 {[%clk 0:00:14]} 29. Qe5 {[%clk 0:00:04]}  Qg4 {[%clk 0:00:12]} 30. f3 {[%clk 0:00:03]}  Qg6 {[%clk 0:00:12]} 31. Bd3 {[%clk 0:00:03]}  Qh6 {[%clk 0:00:12]} 32. Be3 {[%clk 0:00:02]}  Qc6 {[%clk 0:00:10]} 33. Be4 {[%clk 0:00:02]}  Qe6 {[%clk 0:00:10]} 34. Qxe6 {[%clk 0:00:02]}  Bxe6 {[%clk 0:00:10]} 35. Bxa7 {[%clk 0:00:02]}  Rd2 {[%clk 0:00:10]} 36. Rf2 {[%clk 0:00:02]}  Rfd8 {[%clk 0:00:09]} 37. Be3 {[%clk 0:00:02]}  Rd1+ {[%clk 0:00:09]} 38. Kg2 {[%clk 0:00:03]}  Ra1 {[%clk 0:00:10]} 39. f4 {[%clk 0:00:02]}  f5 {[%clk 0:00:10]} 40. Bf3 {[%clk 0:00:03]}  Bd5 {[%clk 0:00:10]} 41. Bc5 {[%clk 0:00:02]}  Bxf3+ {[%clk 0:00:10]} 42. Kxf3 {[%clk 0:00:03]}  Rd3+ {[%clk 0:00:10]} 43. Kg2 {[%clk 0:00:03]}  Rdd1 {[%clk 0:00:10]} 44. a3 {[%clk 0:00:03]}  Rdb1 {[%clk 0:00:10]} 45. Rf3 {[%clk 0:00:02]}  Ra2+ {[%clk 0:00:09]} 46. Kh3 {[%clk 0:00:01]}  Rbb2 {[%clk 0:00:10]} 47. Bg1 {[%clk 0:00:01]}  Rxa3 {[%clk 0:00:10]} 48. g4 {[%clk 0:00:01]}  fxg4+ {[%clk 0:00:10]} 49. Kxg4 {[%clk 0:00:02]}  Rbxb3 {[%clk 0:00:11]} 50. Rxb3 {[%clk 0:00:02]}  Rxb3 {[%clk 0:00:11]} 51. h4 {[%clk 0:00:03]}  Rb1 {[%clk 0:00:12]} 52. Bd4 {[%clk 0:00:03]}  Rf1 {[%clk 0:00:12]} 53. Be5 {[%clk 0:00:03]}  Kf7 {[%clk 0:00:12]} 54. Kg3 {[%clk 0:00:04]}  Rg1+ {[%clk 0:00:13]} 55. Kf2 {[%clk 0:00:04]}  Rb1 {[%clk 0:00:13]} 56. Kg3 {[%clk 0:00:04]}  Rb3+ {[%clk 0:00:14]} 57. Kg4 {[%clk 0:00:05]}  Rb1 {[%clk 0:00:14]} 58. h5 {[%clk 0:00:05]}  Rg1+ {[%clk 0:00:14]} 59. Kf5 {[%clk 0:00:06]}  g6+ {[%clk 0:00:14]} 60. hxg6+ {[%clk 0:00:07]}  hxg6+ {[%clk 0:00:14]} 61. Ke4 {[%clk 0:00:07]}  Ke6 {[%clk 0:00:15]} 62. Bb8 {[%clk 0:00:07]}  Re1+ {[%clk 0:00:15]} 63. Kf3 {[%clk 0:00:08]}  Kf5 {[%clk 0:00:16]} 64. Bc7 {[%clk 0:00:08]}  Rc1 {[%clk 0:00:16]} 65. Bb8 {[%clk 0:00:08]}  Rc8 {[%clk 0:00:15]} 66. Bd6 {[%clk 0:00:08]}  Rd8 {[%clk 0:00:16]} 67. Bc7 {[%clk 0:00:08]}  Rd3+ {[%clk 0:00:16]} 68. Ke2 {[%clk 0:00:08]}  Ke4 {[%clk 0:00:17]} 69. Bb8 {[%clk 0:00:07]}  Rf3 {[%clk 0:00:17]} 70. Bc7 {[%clk 0:00:05]}  Rxf4 {[%clk 0:00:17]} 71. Bxf4 {[%clk 0:00:02]}  Kxf4 {[%clk 0:00:17]} 72. Kf2 {[%clk 0:00:03]}  g5 {[%clk 0:00:17]} 73. Kg2 {[%clk 0:00:04]}  Kg4 {[%clk 0:00:18]} 74. Kh2 {[%clk 0:00:04]}  Kf3 {[%clk 0:00:18]} 75. Kg1 {[%clk 0:00:02]}  Kg3 {[%clk 0:00:19]} 0-1


[Site "https://www.chess.com"]

[Event "Titled Tuesday Blitz August 15 Early 2023"]
[White "Nguyen Hong Anh"]
[Black "Kozelov, Roman"]
[WhiteFideId "12406732"]
[BlackFideId "14133377"]
[WhiteElo "2539"]
[BlackElo "2413"]
[Result "1-0"]
[Round "11"]
[TimeControl "180+1"]
[Date "2023.08.15"]
[WhiteClock "0:02:14"]
[BlackClock "0:02:00"]
[Board "85"]

1. d4 {[%clk 0:02:59]}  d5 {[%clk 0:02:59]} 2. c4 {[%clk 0:02:57]}  e5 {[%clk 0:02:58]} 3. dxe5 {[%clk 0:02:57]}  d4 {[%clk 0:02:59]} 4. Nf3 {[%clk 0:02:55]}  Nc6 {[%clk 0:02:59]} 5. g3 {[%clk 0:02:55]}  Be6 {[%clk 0:02:56]} 6. Bg2 {[%clk 0:02:55]}  Bxc4 {[%clk 0:02:56]} 7. O-O {[%clk 0:02:55]}  Nge7 {[%clk 0:02:55]} 8. Nbd2 {[%clk 0:02:56]}  Bd5 {[%clk 0:02:55]} 9. Nb3 {[%clk 0:02:55]}  Bxf3 {[%clk 0:02:52]} 10. Bxf3 {[%clk 0:02:54]}  Qd7 {[%clk 0:02:51]} 11. Nc5 {[%clk 0:02:52]}  Qf5 {[%clk 0:02:48]} 12. Nxb7 {[%clk 0:02:49]}  Nxe5 {[%clk 0:02:45]} 13. Nd6+ {[%clk 0:02:42]}  cxd6 {[%clk 0:02:44]} 14. Bxa8 {[%clk 0:02:43]}  N7g6 {[%clk 0:02:35]} 15. Qxd4 {[%clk 0:02:40]}  Be7 {[%clk 0:02:35]} 16. Be4 {[%clk 0:02:37]}  Qe6 {[%clk 0:02:34]} 17. Bd5 {[%clk 0:02:32]}  Qh3 {[%clk 0:02:33]} 18. Bg2 {[%clk 0:02:28]}  Qd7 {[%clk 0:02:32]} 19. Be3 {[%clk 0:02:27]}  O-O {[%clk 0:02:30]} 20. Qxa7 {[%clk 0:02:26]}  Qg4 {[%clk 0:02:29]} 21. h3 {[%clk 0:02:23]}  Qxe2 {[%clk 0:02:29]} 22. Rfd1 {[%clk 0:02:23]}  Qxb2 {[%clk 0:02:27]} 23. a4 {[%clk 0:02:19]}  Bf6 {[%clk 0:02:22]} 24. a5 {[%clk 0:02:16]}  Nc4 {[%clk 0:02:22]} 25. Bd4 {[%clk 0:02:16]}  Bxd4 {[%clk 0:02:11]} 26. Qxd4 {[%clk 0:02:16]}  Qxd4 {[%clk 0:02:00]} 27. Rxd4 {[%clk 0:02:14]} 1-0


[Site "https://www.chess.com"]